bitfinex/quotes_BTCUSD_20240701
["timestamp","ask_amount","ask_price","bid_price","bid_amount"]
[1719869889651,0.01163237,63159.0,63158.0,1.43324466]
[1719869891256,0.01163237,63159.0,63158.0,1.41449398]
[1719869891455,0.01163237,63159.0,63158.0,1.43324466]
[1719869891793,0.01163237,63159.0,63158.0,1.41449398]
[1719869892469,0.01163237,63159.0,63158.0,1.43324466]
[1719869894956,0.01163237,63159.0,63158.0,1.41449398]
[1719869895336,0.01163237,63159.0,63158.0,1.43324466]
[1719869896596,0.01163237,63159.0,63158.0,1.41449398]
[1719869896799,0.01163237,63159.0,63158.0,1.43324466]
[1719869913134,0.01163237,63159.0,63158.0,1.56478124]
[1719869914580,0.01163237,63159.0,63158.0,1.63618124]
[1719869915680,0.01163237,63159.0,63158.0,1.63617678]
[1719869918935,0.01163237,63159.0,63158.0,1.63617774]
[1719869922158,0.01163237,63159.0,63158.0,1.50464466]
[1719869922353,0.01163237,63159.0,63158.0,1.63617598]
[1719869922756,0.01163237,63159.0,63158.0,1.5716762]
[1719869922961,0.01163237,63159.0,63158.0,1.6361762]
[1719869925059,0.01163237,63159.0,63158.0,1.68365065]
[1719869925258,0.01163237,63159.0,63158.0,1.68365891]
[1719869925478,0.01163237,63159.0,63158.0,1.63617529]
[1719869925677,0.01163237,63159.0,63158.0,1.68366552]
[1719869926079,0.01163237,63159.0,63158.0,1.63617529]
[1719869926686,0.01163237,63159.0,63158.0,1.68366537]
[1719869927330,0.01163237,63159.0,63158.0,1.53506537]
[1719869927680,0.01163237,63159.0,63158.0,1.48757529]
[1719869928326,0.01163237,63159.0,63158.0,1.55880072]
[1719869928685,0.01163237,63159.0,63158.0,1.42730452]
[1719869928894,0.01163237,63159.0,63158.0,1.55883478]
[1719869930337,0.01163237,63159.0,63158.0,1.48757492]
[1719869931154,0.01163237,63159.0,63158.0,1.66138807]
[1719869932108,0.01163237,63159.0,63158.0,1.66144182]
[1719869932865,0.01163237,63159.0,63158.0,1.58264182]
[1719869933646,0.01163237,63159.0,63158.0,1.72384182]
[1719869935327,0.01163237,63159.0,63158.0,1.49724466]
[1719869935533,0.01163237,63159.0,63158.0,1.72385337]
[1719869935763,0.01163237,63159.0,63158.0,1.59232296]
[1719869935968,0.01163237,63159.0,63158.0,1.72385291]
[1719869936318,0.01163237,63159.0,63158.0,1.62877461]
[1719869936662,0.01163237,63159.0,63158.0,1.7238549]
[1719869937305,0.01163237,63159.0,63158.0,1.62877461]
[1719869937709,0.01163237,63159.0,63158.0,1.72385736]
[1719869938131,0.01163237,63159.0,63158.0,1.56427461]
[1719869938310,0.01163237,63159.0,63158.0,1.48677461]
[1719869938542,0.01163237,63159.0,63158.0,1.48677507]
[1719869941228,0.01163237,63159.0,63158.0,1.48677478]
[1719869941460,0.01163237,63159.0,63158.0,1.56677478]
[1719869942349,0.01163237,63159.0,63158.0,1.50307478]
[1719869944504,0.01163237,63159.0,63158.0,1.50307511]
[1719869945962,0.01163237,63159.0,63158.0,1.59816278]
[1719869946184,0.08733237,63159.0,63158.0,1.59816278]
[1719869946411,0.08733237,63159.0,63158.0,1.50307511]
[1719869946802,0.01163237,63159.0,63158.0,1.50307511]
[1719869947586,0.01163237,63159.0,63158.0,1.59816475]
[1719869947782,0.01163237,63159.0,63158.0,1.59816509]
[1719869947992,0.01163237,63159.0,63158.0,1.37154466]
[1719869948197,0.01163237,63159.0,63158.0,1.5030758]
[1719869948862,0.01163237,63159.0,63158.0,0.45432712]
[1719869948977,0.15463237,63159.0,63158.0,0.37034546]
[1719869949181,0.1774496,63159.0,63158.0,0.32279598]
[1719869949995,0.1774496,63159.0,63158.0,0.16446298]
[1719869968439,0.1152496,63159.0,63158.0,0.16446298]
[1719869969641,0.0344496,63159.0,63158.0,0.32279598]
[1719869971399,0.0344496,63159.0,63158.0,0.65821266]
[1719869972298,0.0344496,63159.0,63158.0,0.63946198]
[1719869982277,0.0344496,63159.0,63158.0,0.65821266]
[1719869984971,0.0344496,63159.0,63158.0,0.80001266]
[1719869985150,0.0344496,63159.0,63158.0,0.65821266]
[1719869987709,0.1131496,63159.0,63158.0,0.65821266]
[1719869990770,0.0344496,63159.0,63158.0,1.11937866]
[1719869991009,0.01163237,63159.0,63158.0,1.08821509]
[1719869991218,0.01163237,63159.0,63158.0,1.02241509]
[1719869992202,0.01163237,63159.0,63158.0,0.97487866]
[1719869992368,0.01163237,63159.0,63158.0,1.04618331]
[1719869993449,0.01163237,63159.0,63158.0,0.97487866]
[1719869994397,0.01163237,63159.0,63158.0,1.04619837]
[1719869994754,0.01163237,63159.0,63158.0,0.97487866]
[1719869995689,0.01163237,63159.0,63158.0,1.04619837]
[1719869996515,0.01163237,63159.0,63158.0,0.97487866]
[1719869997323,0.01163237,63159.0,63158.0,1.04621422]
[1719869997538,0.01163237,63159.0,63158.0,1.04621034]
[1719869998744,0.01163237,63159.0,63158.0,0.97487866]
[1719870000360,0.01163237,63159.0,63158.0,1.27279398]
[1719870000498,0.01163237,63159.0,63158.0,1.60258101]
[1719870001125,0.01163237,63159.0,63158.0,1.39154466]
[1719870001364,0.01163237,63159.0,63158.0,1.57491497]
[1719870001365,0.00763237,63159.0,63158.0,1.57491497]
[1719870001538,0.00763237,63159.0,63158.0,1.45604466]
[1719870001763,0.00763237,63159.0,63158.0,1.57389375]
[1719870001764,0.00563237,63159.0,63158.0,1.57389375]
[1719870002116,0.00563237,63159.0,63158.0,1.57489375]
[1719870002117,0.01163237,63159.0,63158.0,1.57489375]
[1719870002323,0.00763237,63159.0,63158.0,1.57489375]
[1719870002528,0.00763237,63159.0,63158.0,1.5748943]
[1719870002697,0.00163237,63159.0,63158.0,1.5788943]
[1719870003053,0.00163237,63159.0,63158.0,1.5818943]
[1719870003278,0.00163237,63159.0,63158.0,1.46304466]
[1719870003496,0.00163237,63159.0,63158.0,1.39854466]
[1719870003697,0.00163237,63159.0,63158.0,1.46304466]
[1719870003879,0.00163237,63159.0,63158.0,1.55810224]
[1719870005700,0.00163237,63159.0,63158.0,1.55808863]
[1719870005874,0.14143237,63159.0,63158.0,1.55808863]
[1719870006304,0.14143237,63159.0,63158.0,1.46304466]
[1719870006504,0.07753237,63159.0,63158.0,1.46304466]
[1719870006912,0.07753237,63159.0,63158.0,1.46364556]
[1719870007115,0.00163237,63159.0,63158.0,1.60914556]
[1719870007314,0.00163237,63159.0,63158.0,1.72795053]
[1719870007752,0.00163237,63159.0,63158.0,1.60914556]
[1719870007958,0.00163237,63159.0,63158.0,1.72792884]
[1719870008316,0.00163237,63159.0,63158.0,1.66342884]
[1719870008520,0.00163237,63159.0,63158.0,1.72792884]
[1719870008727,0.00163237,63159.0,63158.0,1.60914556]
[1719870008931,0.00163237,63159.0,63158.0,1.72791615]
[1719870009136,0.00163237,63159.0,63158.0,1.85944072]
[1719870009960,0.00163237,63159.0,63158.0,1.74067013]
[1719870010191,0.00163237,63159.0,63158.0,1.85944072]
[1719870010409,0.00163237,63159.0,63158.0,1.74067013]
[1719870010809,0.00163237,63159.0,63158.0,1.85944072]
[1719870011060,0.00163237,63159.0,63158.0,1.74067013]
[1719870011253,0.00163237,63159.0,63158.0,1.85941715]
[1719870012106,0.00163237,63159.0,63158.0,1.85940776]
[1719870012217,0.00163237,63159.0,63158.0,1.85940824]
[1719870012423,0.00163237,63159.0,63158.0,1.74067013]
[1719870013054,0.00163237,63159.0,63158.0,1.67617013]
[1719870013385,0.00163237,63159.0,63158.0,1.83565163]
[1719870014966,0.00163237,63159.0,63158.0,1.83625233]
[1719870015170,0.00163237,63159.0,63158.0,1.60974626]
[1719870015367,0.00163237,63159.0,63158.0,1.8362486]
[1719870016856,0.00163237,63159.0,63158.0,1.83624177]
[1719870017085,0.00163237,63159.0,63158.0,1.74127165]
[1719870017426,0.00163237,63159.0,63158.0,1.836239]
[1719870017643,0.00163237,63159.0,63158.0,1.74127165]
[1719870018463,0.00163237,63159.0,63158.0,1.60974626]
[1719870018760,0.00163237,63159.0,63158.0,1.83623457]
[1719870019510,0.00163237,63159.0,63158.0,1.84097092]
[1719870019703,0.00163237,63159.0,63158.0,1.74600656]
[1719870021726,0.00163237,63159.0,63158.0,1.61448261]
[1719870021938,0.00163237,63159.0,63158.0,1.74600547]
[1719870022340,0.00163237,63159.0,63158.0,1.74600566]
[1719870024257,0.00163237,63159.0,63158.0,2.06267166]
[1719870025678,0.00163237,63159.0,63158.0,1.93114861]
[1719870026612,0.00163237,63159.0,63158.0,1.78564861]
[1719870027607,0.00163237,63159.0,63158.0,2.09896002]
[1719870028169,0.00163237,63159.0,63158.0,2.08020934]
[1719870029152,0.00163237,63159.0,63158.0,1.97171043]
[1719870030113,0.00163237,63159.0,63158.0,1.95992172]
[1719870030337,0.00163237,63159.0,63158.0,1.97171043]
[1719870030960,0.08213237,63159.0,63158.0,1.82471043]
[1719870031120,0.08213237,63159.0,63158.0,1.82043732]
[1719870032131,0.00163237,63159.0,63158.0,1.82043732]
[1719870032477,0.00163237,63159.0,63158.0,1.80864861]
[1719870033928,0.00163237,63159.0,63158.0,1.78989793]
[1719870034054,0.00163237,63159.0,63158.0,1.95454861]
[1719870034255,0.00163237,63159.0,63158.0,1.95882172]
[1719870038116,0.00163237,63159.0,63158.0,1.81292172]
[1719870040774,0.00163237,63159.0,63158.0,1.74842172]
[1719870040906,0.00163237,63159.0,63158.0,1.81292172]
[1719870041104,0.00163237,63159.0,63158.0,1.80864861]
[1719870041735,0.00163237,63159.0,63158.0,1.87652172]
[1719870041940,0.00163237,63159.0,63158.0,1.95282172]
[1719870043724,0.00163237,63159.0,63158.0,1.96461043]
[1719870044128,0.00163237,63159.0,63158.0,2.09612381]
[1719870045347,0.00163237,63159.0,63158.0,1.96461043]
[1719870045551,0.00163237,63159.0,63158.0,2.09612373]
[1719870046359,0.00163237,63159.0,63158.0,2.09832373]
[1719870047555,0.00163237,63159.0,63158.0,2.25986113]
[1719870048287,0.00163237,63159.0,63158.0,2.25558802]
[1719870048769,0.00163237,63159.0,63158.0,2.23656122]
[1719870048988,0.00163237,63159.0,63158.0,2.094048]
[1719870049192,0.00163237,63159.0,63158.0,2.16407636]
[1719870049324,0.00163237,63159.0,63158.0,2.30658994]
[1719870050472,0.00163237,63159.0,63158.0,2.16407636]
[1719870054061,0.00163237,63159.0,63158.0,2.16407633]
[1719870055598,0.00163237,63159.0,63158.0,2.16407626]
[1719870056025,0.00163237,63159.0,63158.0,2.03256582]
[1719870056231,0.00163237,63159.0,63158.0,2.30660398]
[1719870056656,0.00163237,63159.0,63158.0,2.24210398]
[1719870057030,0.00163237,63159.0,63158.0,2.16407661]
[1719870057404,0.00163237,63159.0,63158.0,2.30660631]
[1719870058025,0.00163237,63159.0,63158.0,2.16407661]
[1719870058723,0.00163237,63159.0,63158.0,2.36134403]
[1719870059806,0.00163237,63159.0,63158.0,2.33832024]
[1719870060344,0.00163237,63159.0,63158.0,2.36134403]
[1719870061210,0.00163237,63159.0,63158.0,2.36133965]
[1719870062750,0.00163237,63159.0,63158.0,2.35833965]
[1719870062906,0.00163237,63159.0,63158.0,2.35333965]
[1719870063108,0.00263237,63159.0,63158.0,2.36333965]
[1719870063310,0.00363237,63159.0,63158.0,2.37433965]
[1719870063696,0.00263237,63159.0,63158.0,2.36333965]
[1719870064142,0.00263237,63159.0,63158.0,2.37733965]
[1719870064471,0.00263237,63159.0,63158.0,2.69400331]
[1719870067745,0.00263237,63159.0,63158.0,2.36523056]
[1719870067966,0.00263237,63159.0,63158.0,2.69400124]
[1719870068138,0.00263237,63159.0,63158.0,2.69400047]
[1719870070940,0.00263237,63159.0,63158.0,2.56249133]
[1719870071073,0.00136028,63159.0,63158.0,2.69399878]
[1719870071922,0.00136028,63159.0,63158.0,2.55189878]
[1719870072181,0.00136028,63159.0,63158.0,2.69149878]
[1719870072323,0.00136028,63159.0,63158.0,3.02026326]
[1719870074132,0.00136028,63159.0,63158.0,2.62574091]
[1719870074343,0.00136028,63159.0,63158.0,3.23077281]
[1719870074717,0.00136028,63159.0,63158.0,3.02024544]
[1719870075037,0.00136028,63159.0,63158.0,3.23077281]
[1719870075334,0.00136028,63159.0,63158.0,3.02024544]
[1719870077478,0.00136028,63159.0,63158.0,2.69149166]
[1719870077652,0.00136028,63159.0,63158.0,3.02025041]
[1719870080750,0.00136028,63159.0,63158.0,2.95449966]
[1719870080919,0.00136028,63159.0,63158.0,3.0202501]
[1719870081248,0.00136028,63159.0,63158.0,3.02025165]
[1719870082484,0.00136028,63159.0,63158.0,3.02024825]
[1719870082970,0.00136028,63159.0,63158.0,3.23074393]
[1719870084106,0.00136028,63159.0,63158.0,3.2307293]
[1719870085248,0.00136028,63159.0,63158.0,3.6407293]
[1719870087238,0.00136028,63159.0,63158.0,3.64072734]
[1719870087956,0.00136028,63159.0,63158.0,3.43024318]
[1719870088299,0.00136028,63159.0,63158.0,3.64072734]
[1719870090512,0.00136028,63159.0,63158.0,3.64073607]
[1719870091700,0.00136028,63159.0,63158.0,3.75345407]
[1719870093865,0.00136028,63159.0,63158.0,3.75344764]
[1719870094220,0.00136028,63159.0,63158.0,3.54295641]
[1719870094842,0.00136028,63159.0,63158.0,3.21420566]
[1719870094972,0.00136028,63159.0,63158.0,3.75345542]
[1719870095176,0.00136028,63159.0,63158.0,3.54295701]
[1719870096586,0.00136028,63159.0,63158.0,3.80512201]
[1719870097644,0.00136028,63159.0,63158.0,3.73937186]
[1719870097838,0.00136028,63159.0,63158.0,3.8051208]
[1719870098456,0.00136028,63159.0,63158.0,3.7185208]
[1719870101019,0.00136028,63159.0,63158.0,3.71851392]
[1719870104219,0.00136028,63159.0,63158.0,3.65276408]
[1719870104464,0.00136028,63159.0,63158.0,3.71851279]
[1719870105037,0.00136028,63159.0,63158.0,4.03517879]
[1719870106105,0.00136028,63159.0,63158.0,3.89557879]
[1719870106300,0.00104,63162.0,63161.0,2.24517985]
[1719870106501,0.00104,63162.0,63161.0,3.60918419]
[1719870107762,0.01504,63162.0,63161.0,3.61018419]
[1719870107970,0.00104,63162.0,63161.0,3.60915201]
[1719870108354,0.01504,63162.0,63161.0,3.61015201]
[1719870108908,0.01504,63162.0,63161.0,3.46275201]
[1719870109026,0.02304,63162.0,63161.0,3.46375201]
[1719870110550,0.02304,63162.0,63161.0,3.39800866]
[1719870110752,0.02304,63162.0,63161.0,3.46375252]
[1719870111102,0.02304,63162.0,63161.0,3.60285252]
[1719870111309,0.0754,63170.0,63169.0,1.73250514]
[1719870111487,0.0754,63170.0,63169.0,2.63832613]
[1719870112115,0.0754,63170.0,63169.0,2.95493613]
[1719870112360,0.0764,63170.0,63169.0,2.93291234]
[1719870112561,0.0764,63170.0,63169.0,2.95593613]
[1719870112906,0.0764,63170.0,63169.0,3.01930213]
[1719870113567,0.0764,63170.0,63169.0,3.02030213]
[1719870113877,0.0764,63170.0,63169.0,3.02029711]
[1719870115383,0.0764,63170.0,63169.0,2.80404236]
[1719870115654,0.0764,63170.0,63169.0,2.66155182]
[1719870116023,0.0764,63170.0,63169.0,3.02029711]
[1719870116223,0.0764,63170.0,63169.0,3.02039711]
[1719870117067,0.0764,63170.0,63169.0,2.46442012]
[1719870117281,0.0764,63170.0,63169.0,3.02039037]
[1719870117454,0.0765,63170.0,63169.0,3.01939037]
[1719870117652,0.0755,63170.0,63169.0,3.01939037]
[1719870118385,0.0755,63170.0,63169.0,3.02039037]
[1719870118555,0.0755,63170.0,63169.0,2.88969437]
[1719870118764,0.0755,63170.0,63169.0,2.8706713]
[1719870118920,0.0755,63170.0,63169.0,2.8707713]
[1719870120335,0.0756,63170.0,63169.0,2.47630883]
[1719870120540,0.0756,63170.0,63169.0,2.87076306]
[1719870120784,0.0756,63170.0,63169.0,2.80502069]
[1719870120785,0.00104,63170.0,63169.0,2.80502069]
[1719870120982,0.00104,63170.0,63169.0,2.97826198]
[1719870122147,0.00104,63170.0,63169.0,2.97726198]
[1719870122290,0.00104,63170.0,63169.0,2.86876298]
[1719870122497,0.08404,63170.0,63169.0,2.99226298]
[1719870122703,0.08404,63170.0,63169.0,2.99224865]
[1719870122954,0.08404,63170.0,63169.0,2.99124865]
[1719870123152,0.08404,63170.0,63169.0,2.99224865]
[1719870123564,0.08404,63170.0,63169.0,2.99324868]
[1719870123721,0.08395879,63170.0,63169.0,2.99324868]
[1719870123917,0.08395879,63170.0,63169.0,3.0204832]
[1719870124318,0.08395879,63170.0,63169.0,3.0214832]
[1719870126088,0.08395879,63170.0,63169.0,3.02148246]
[1719870126647,0.08395879,63170.0,63169.0,3.04029982]
[1719870126851,0.08395879,63170.0,63169.0,3.36899386]
[1719870127050,0.08395879,63170.0,63169.0,3.04029982]
[1719870129303,0.08395879,63170.0,63169.0,3.04029775]
[1719870130376,0.08395879,63170.0,63169.0,3.30940775]
[1719870132596,0.08395879,63170.0,63169.0,3.30940651]
[1719870132990,0.08395879,63170.0,63169.0,2.91497071]
[1719870133199,0.08395879,63170.0,63169.0,3.30940651]
[1719870133617,0.08395879,63170.0,63169.0,3.63810042]
[1719870134041,0.08395879,63170.0,63169.0,3.30940651]
[1719870134245,0.08395879,63170.0,63169.0,3.6381022]
[1719870134625,0.00095879,63170.0,63169.0,3.6381022]
[1719870135914,0.00095879,63170.0,63169.0,3.63810179]
[1719870137635,0.00095879,63170.0,63169.0,3.78310179]
[1719870139117,0.00095879,63170.0,63169.0,3.58588241]
[1719870139296,0.00095879,63170.0,63169.0,3.78309809]
[1719870139503,0.00095879,63170.0,63169.0,4.09970809]
[1719870139709,0.00095879,63170.0,63169.0,3.7710124]
[1719870139919,0.00095879,63170.0,63169.0,4.09970502]
[1719870142235,0.00095879,63170.0,63169.0,4.07668123]
[1719870142437,0.00095879,63170.0,63169.0,4.09970268]
[1719870143176,0.00095879,63170.0,63169.0,3.95470268]
[1719870144495,0.00095879,63170.0,63169.0,3.62601006]
[1719870144496,0.14785879,63170.0,63169.0,3.62601006]
[1719870144695,0.14785879,63170.0,63169.0,3.60298627]
[1719870145108,0.14785879,63170.0,63169.0,3.93168844]
[1719870145502,0.14785879,63170.0,63169.0,3.53725909]
[1719870145682,0.14785879,63170.0,63169.0,3.95472555]
[1719870145883,0.14785879,63170.0,63169.0,3.56028288]
[1719870146092,0.14785879,63170.0,63169.0,3.62602858]
[1719870146842,0.14785879,63170.0,63169.0,3.60463558]
[1719870148175,0.14785879,63170.0,63169.0,3.93334245]
[1719870149603,0.14785879,63170.0,63169.0,3.93809445]
[1719870152040,0.14785879,63170.0,63169.0,3.87235314]
[1719870152258,0.14785879,63170.0,63169.0,3.93809445]
[1719870153439,0.14785879,63170.0,63169.0,3.93901845]
[1719870154327,0.08245879,63170.0,63169.0,3.93901845]
[1719870154993,0.08245879,63170.0,63169.0,3.54457058]
[1719870155160,0.08245879,63170.0,63169.0,3.93901847]
[1719870155604,0.08245879,63170.0,63169.0,3.6103116]
[1719870156473,0.08245879,63170.0,63169.0,3.93901552]
[1719870157478,0.08245879,63170.0,63169.0,4.14947959]
[1719870157895,0.08245879,63170.0,63169.0,3.93901552]
[1719870158100,0.08245879,63170.0,63169.0,4.14947959]
[1719870158596,0.08245879,63170.0,63169.0,3.93901552]
[1719870158831,0.08245879,63170.0,63169.0,3.41606163]
[1719870159042,0.08245879,63170.0,63169.0,3.8105034]
[1719870159245,0.08245879,63170.0,63169.0,3.81050415]
[1719870161232,0.00095879,63170.0,63169.0,3.81050415]
[1719870162071,0.00095879,63170.0,63169.0,3.81050369]
[1719870162292,0.00095879,63170.0,63169.0,4.02102081]
[1719870162469,0.00095879,63170.0,63169.0,3.81050369]
[1719870162983,0.00095879,63170.0,63169.0,4.02102081]
[1719870165306,0.00095879,63170.0,63169.0,4.02106054]
[1719870168272,0.00095879,63170.0,63169.0,3.82383951]
[1719870168476,0.00095879,63170.0,63169.0,4.02106325]
[1719870168907,0.00095879,63170.0,63169.0,3.81050673]
[1719870170996,0.00095879,63170.0,63169.0,4.02106325]
[1719870171296,0.14575879,63170.0,63169.0,4.02106325]
[1719870171532,0.14575879,63170.0,63169.0,3.48180281]
[1719870171735,0.14575879,63170.0,63169.0,3.48181391]
[1719870172124,0.14575879,63170.0,63169.0,3.08735771]
[1719870172255,0.14575879,63170.0,63169.0,3.48180899]
[1719870173380,0.14575879,63170.0,63169.0,3.41762599]
[1719870174943,0.14575879,63170.0,63169.0,3.41762764]
[1719870175557,0.00095879,63170.0,63169.0,3.56232764]
[1719870175908,0.00095879,63170.0,63169.0,3.89103852]
[1719870176814,0.00095879,63170.0,63169.0,4.1015988]
[1719870176948,0.00095879,63170.0,63169.0,3.74633852]
[1719870177772,0.00095879,63170.0,63169.0,3.9568988]
[1719870178178,0.00095879,63170.0,63169.0,3.56244587]
[1719870178404,0.00095879,63170.0,63169.0,3.95689154]
[1719870180123,0.00095879,63170.0,63169.0,3.77461154]
[1719870180928,0.00095879,63170.0,63169.0,3.49831032]
[1719870181148,0.00095879,63170.0,63169.0,3.77460665]
[1719870183869,0.00095879,63170.0,63169.0,3.23534606]
[1719870184074,0.00095879,63170.0,63169.0,3.56405381]
[1719870184497,0.00095879,63170.0,63169.0,3.56405471]
[1719870184701,0.00095879,63170.0,63169.0,3.23534383]
[1719870185174,0.00095879,63170.0,63169.0,3.56405287]
[1719870187079,0.00095879,63170.0,63169.0,3.16960375]
[1719870187217,1e-08,63170.0,63169.0,4.15734322]
[1719870187416,1e-08,63170.0,63169.0,3.70565278]
[1719870190380,1e-08,63170.0,63169.0,3.37694018]
[1719870190581,1e-08,63170.0,63169.0,3.70562233]
[1719870190983,0.00010001,63170.0,63169.0,3.70562233]
[1719870191731,0.00010001,63170.0,63169.0,4.07145133]
[1719870194198,0.0802,63177.0,63176.0,1.74413585]
[1719870194400,0.0802,63177.0,63176.0,2.48839341]
[1719870195442,0.0802,63177.0,63176.0,2.48939341]
[1719870196346,0.0802,63177.0,63176.0,2.49039341]
[1719870196969,0.0802,63177.0,63176.0,2.09597483]
[1719870197267,0.0802,63177.0,63176.0,2.49039091]
[1719870197473,0.0802,63177.0,63176.0,2.09587483]
[1719870197767,0.0802,63177.0,63176.0,2.49019163]
[1719870200206,0.0802,63177.0,63176.0,2.09577483]
[1719870200359,0.0802,63177.0,63176.0,2.49019272]
[1719870201162,0.0802,63177.0,63176.0,2.49009272]
[1719870201773,0.0802,63177.0,63176.0,2.29288377]
[1719870202173,0.0802,63177.0,63176.0,2.49009272]
[1719870202731,0.0802,63177.0,63176.0,2.29288377]
[1719870203209,0.0802,63177.0,63176.0,2.49009272]
[1719870203405,0.0802,63177.0,63176.0,2.22714746]
[1719870203731,0.0802,63177.0,63176.0,2.49009593]
[1719870205160,0.0802,63177.0,63176.0,2.48999593]
[1719870205956,0.0802,63177.0,63176.0,2.16131168]
[1719870206119,0.0802,63177.0,63176.0,2.48999468]
[1719870206323,0.0803,63177.0,63176.0,2.48999468]
[1719870206728,0.0803,63177.0,63176.0,2.48999494]
[1719870210052,0.0803,63177.0,63176.0,2.09557483]
[1719870210301,0.0803,63177.0,63176.0,2.48999212]
[1719870210590,0.0803,63177.0,63176.0,2.48999032]
[1719870210763,0.0803,63177.0,63176.0,2.50873091]
[1719870212353,0.0001,63177.0,63176.0,2.50873091]
[1719870213160,0.0002,63177.0,63176.0,2.50873083]
[1719870215348,0.0002,63177.0,63176.0,2.18005132]
[1719870216331,0.0002,63177.0,63176.0,2.18097532]
[1719870216699,0.00104,63177.0,63176.0,2.18097532]
[1719870217341,0.00104,63177.0,63176.0,2.31244719]
[1719870217760,0.00104,63177.0,63176.0,2.509655]
[1719870219534,0.00104,63177.0,63176.0,2.44391797]
[1719870220012,0.00104,63177.0,63176.0,2.50965368]
[1719870222156,0.00104,63177.0,63176.0,2.96742868]
[1719870222366,0.14474,63177.0,63176.0,2.76048701]
[1719870222548,0.14474,63177.0,63176.0,3.1548941]
[1719870223784,0.08054,63177.0,63176.0,3.1548941]
[1719870226109,0.08054,63177.0,63176.0,2.76048701]
[1719870226277,0.08054,63177.0,63176.0,3.15488936]
[1719870227705,0.00104,63177.0,63176.0,3.09038936]
[1719870228036,0.00104,63177.0,63176.0,3.35539736]
[1719870228960,0.00104,63177.0,63176.0,3.02672477]
[1719870229175,0.00104,63177.0,63176.0,3.49539332]
[1719870229824,0.0767,63188.0,63187.0,1.72742703]
[1719870229993,0.0767,63188.0,63187.0,2.07726601]
[1719870230217,0.0767,63188.0,63187.0,2.2087317]
[1719870230419,0.0767,63188.0,63187.0,2.5252517]
[1719870230628,0.0767,63188.0,63187.0,2.5886017]
[1719870230854,0.0767,63188.0,63187.0,2.60039041]
[1719870231603,0.0767,63188.0,63187.0,2.60129041]
[1719870231810,0.0767,63188.0,63187.0,2.60139041]
[1719870232053,0.0767,63188.0,63187.0,2.60566352]
[1719870232253,0.0767,63188.0,63187.0,2.60139041]
[1719870232854,0.0767,63188.0,63187.0,2.60466352]
[1719870233210,0.0767,63188.0,63187.0,2.61862773]
[1719870233654,0.0767,63188.0,63187.0,2.62952773]
[1719870234122,0.07934,63193.0,63192.0,1.44075206]
[1719870234322,0.07934,63193.0,63192.0,1.92204238]
[1719870234557,0.07934,63193.0,63192.0,1.94029306]
[1719870234755,0.07934,63193.0,63192.0,1.94456617]
[1719870235109,0.07934,63193.0,63192.0,1.88006617]
[1719870235319,0.07934,63193.0,63192.0,2.06722264]
[1719870236517,0.07934,63193.0,63192.0,2.07320474]
[1719870236866,0.07934,63193.0,63192.0,2.07090985]
[1719870237244,0.00084,63193.0,63192.0,2.25051406]
[1719870237446,0.00084,63193.0,63192.0,2.25876474]
[1719870237791,0.07684,63193.0,63192.0,2.28303785]
[1719870237932,0.07684,63193.0,63192.0,2.28293785]
[1719870238329,0.07684,63193.0,63192.0,2.29295963]
[1719870238772,0.07684,63193.0,63192.0,2.29285963]
[1719870239172,0.07684,63193.0,63192.0,2.28185963]
[1719870239688,0.07684,63193.0,63192.0,2.29585963]
[1719870240110,0.00084,63193.0,63192.0,2.29585963]
[1719870240236,0.00084,63193.0,63192.0,2.23135963]
[1719870240237,0.07874,63193.0,63192.0,2.23135963]
[1719870240439,0.07874,63193.0,63192.0,2.29585963]
[1719870240636,0.07874,63193.0,63192.0,1.91059152]
[1719870240841,0.14074,63193.0,63192.0,2.00545782]
[1719870241041,0.14074,63193.0,63192.0,1.91059152]
[1719870241255,0.14074,63193.0,63192.0,2.06996132]
[1719870242308,0.14074,63193.0,63192.0,2.06995728]
[1719870243485,0.14074,63193.0,63192.0,1.97509234]
[1719870244081,0.14074,63193.0,63192.0,1.97499234]
[1719870244645,0.14074,63193.0,63192.0,1.97489234]
[1719870245483,0.14074,63193.0,63192.0,1.97488793]
[1719870245749,0.14074,63193.0,63192.0,2.09344498]
[1719870247413,0.14074,63193.0,63192.0,2.09334498]
[1719870247871,0.00084,63193.0,63192.0,2.09761809]
[1719870248084,0.00084,63193.0,63192.0,1.97906104]
[1719870248284,0.00084,63193.0,63192.0,1.95653725]
[1719870248488,0.00084,63193.0,63192.0,2.07506515]
[1719870248730,0.00084,63193.0,63192.0,2.07506108]
[1719870249520,0.00084,63193.0,63192.0,2.39155608]
[1719870249753,0.00084,63193.0,63192.0,2.27302803]
[1719870250504,0.00084,63193.0,63192.0,2.29471182]
[1719870250707,0.00084,63193.0,63192.0,2.41323153]
[1719870250918,0.00084,63193.0,63192.0,2.23021182]
[1719870251120,0.07594,63193.0,63192.0,2.38953153]
[1719870251320,0.07594,63193.0,63192.0,2.29471182]
[1719870251712,0.07604,63193.0,63192.0,2.29471182]
[1719870251918,0.07604,63193.0,63192.0,2.41323241]
[1719870252138,0.07604,63193.0,63192.0,2.09673741]
[1719870252341,0.07604,63193.0,63192.0,2.09674168]
[1719870252863,0.00104,63193.0,63192.0,1.9782164]
[1719870255045,0.00104,63193.0,63192.0,1.97821376]
[1719870258232,0.00104,63193.0,63192.0,1.84677483]
[1719870258385,0.00104,63193.0,63192.0,1.99722892]
[1719870260459,0.00104,63193.0,63192.0,1.97821299]
[1719870261702,0.00104,63193.0,63192.0,1.97821331]
[1719870262447,0.00104,63193.0,63192.0,1.99722952]
[1719870262642,0.00104,63193.0,63192.0,2.12601331]
[1719870262874,0.00104,63193.0,63192.0,1.95568952]
[1719870265330,0.00104,63193.0,63192.0,1.95568622]
[1719870267399,0.00104,63193.0,63192.0,2.60076305]
[1719870267598,0.00104,63193.0,63192.0,2.28426805]
[1719870267847,0.00104,63193.0,63192.0,1.95568622]
[1719870268150,0.00104,63193.0,63192.0,1.95568696]
[1719870270772,0.14254,63193.0,63192.0,1.95568696]
[1719870274439,0.14254,63193.0,63192.0,1.82425104]
[1719870274654,0.14254,63193.0,63192.0,1.95568878]
[1719870274850,0.00104,63193.0,63192.0,1.95568878]
[1719870275051,0.00104,63193.0,63192.0,2.2634989]
[1719870275456,0.00104,63193.0,63192.0,2.26352836]
[1719870275631,0.00104,63193.0,63192.0,3.54092836]
[1719870276418,0.00104,63193.0,63192.0,3.39851257]
[1719870277063,0.00104,63193.0,63192.0,3.71500757]
[1719870277615,0.00104,63193.0,63192.0,4.04358988]
[1719870277888,0.00104,63193.0,63192.0,3.9121535]
[1719870278005,0.00104,63193.0,63192.0,4.04358665]
[1719870278360,0.00104,63193.0,63192.0,4.1481895]
[1719870278361,1e-08,63193.0,63192.0,4.1481895]
[1719870278571,0.00084,63196.0,63195.0,2.05834885]
[1719870278774,0.00084,63196.0,63195.0,2.86820057]
[1719870279770,0.00084,63196.0,63195.0,2.87820057]